Posting Date,Expenditure Area,Supplier Name,Amount,Expense Type,Reason for Expense
20-May-21,Corporate Management Team,Amznmktplace,15.48,Specific Campaigns / Projects expenditure,Door alarm for West Villa resident
13-May-21,Corporate Management Team,Gen Register Office,14.00,Specific Campaigns / Projects expenditure,Birth certificate for resident in temp to assist moving on
27-May-21,Corporate Management Team,Www.Waterstonesgiftcar,41.67,Specific Campaigns / Projects expenditure,Book voucher for resident West Villa
14-May-21,Culture & Environment Services,Amazon.Co.Uk,33.78,Equipment / Furniture / Materials,Tool wallet and screwdrivers for Tech Department
07-May-21,Culture & Environment Services,Amazon.Co.Uk,2.08,Materials and Supplies - Miscellaneous,Kitchen Sponges
07-May-21,Culture & Environment Services,Amazon.Co.Uk,19.99,Materials and Supplies - Miscellaneous,Teabags
13-May-21,Culture & Environment Services,Amazon.Co.Uk,10.60,Materials and Supplies - Miscellaneous,Material for FIRST AID BOX
18-May-21,Culture & Environment Services,Amznmktplace,12.07,Cleaning Supplies,Blue roll
12-May-21,Culture & Environment Services,Amznmktplace,5.82,Equipment / Furniture / Materials,Light bulbs for burial van headlights
03-May-21,Culture & Environment Services,Amznmktplace,4.15,Materials and Supplies - Miscellaneous,7.5A blade fuses for cem
04-May-21,Culture & Environment Services,Amznmktplace,28.53,Materials and Supplies - Miscellaneous,Sundries for Waste Services
19-May-21,Culture & Environment Services,Amznmktplace,8.98,Materials and Supplies - Miscellaneous,Cable Ties for 
11-May-21,Culture & Environment Services,Amznmktplace,11.48,Telecommunication Costs - Mobiles,Phone case for cleansing
14-May-21,Culture & Environment Services,Amznmktplace,17.97,Telecommunication Costs - Mobiles,PHONE CASES FOR CLEANSING
04-May-21,Culture & Environment Services,Amznmktplace Amazon.Co.Uk,62.49,Equipment / Furniture / Materials,New drill/driver for Corn Exchange technical dept.
03-May-21,Culture & Environment Services,Amznmktplace Amazon.Co.Uk,20.82,Materials and Supplies - Miscellaneous,Black vinyl for covering Hand Sanitisers
03-May-21,Culture & Environment Services,Anylamp,91.59,Fixtures & Fittings,Lamps and batteries for Corn Exchange/Town Hall
13-May-21,Culture & Environment Services,B & Q 1315,47.71,Equipment / Furniture / Materials,4 Torches - Emergency Use / Sealent and gun to fix Pool Shoe
13-May-21,Culture & Environment Services,B & Q 1315,16.62,Miscellaneous Stock  - Purchases,Material for toilet repair - ALEXANDRA PARK
18-May-21,Culture & Environment Services,B & Q 1315,75.95,Miscellaneous Stock  - Purchases,PLANTS FOR ALEXANDRA PARK
10-May-21,Culture & Environment Services,B&m 293 - Ipswich,12.50,Materials and Supplies - Miscellaneous,55cm Terracotta Bell Pots x 3
06-May-21,Culture & Environment Services,Bag Agg Ltd,25.00,Materials and Supplies - Miscellaneous,BALLAST - CHANTRY HUB
17-May-21,Culture & Environment Services,Bag Agg Ltd,75.00,Materials and Supplies - Miscellaneous,Ballast - MARION ROAD
24-May-21,Culture & Environment Services,Benchmark UK Ltd,"2,250.00",Miscellaneous Stock  - Purchases,Play Area Picnic Benches
13-May-21,Culture & Environment Services,Buildbase - Ipswich,104.99,Miscellaneous Stock  - Purchases,POSTMIX - ALEXANDRA PARK (fencing)
14-May-21,Culture & Environment Services,Buildbase - Ipswich,139.95,Miscellaneous Stock  - Purchases,POSTMIX - ALEXANDRA PARK (fencing)
31-May-21,Culture & Environment Services,Buildbase - Ipswich,53.90,Miscellaneous Stock  - Purchases,10x bags of cement - LANDSCAPE TEAM
18-May-21,Culture & Environment Services,Christines Florist,33.75,Equipment / Furniture / Materials,REDACTED
31-May-21,Culture & Environment Services,Coastal Building Supplie,255.00,Miscellaneous Stock  - Purchases,Pallet of Cement - ALEXANDRA PARK
31-May-21,Culture & Environment Services,Coastal Building Supplie,255.00,Miscellaneous Stock  - Purchases,Pallet of Cement - ALEXANDRA PARK
07-May-21,Culture & Environment Services,Collier & Catchpole,19.75,Materials and Supplies - Miscellaneous,CEMENT - CHANTRY HUB
07-May-21,Culture & Environment Services,Collier & Catchpole,2.74,Materials and Supplies - Miscellaneous,Nails - TOOKS SITE
12-May-21,Culture & Environment Services,Dale Sauna Ltd,176.05,Cleaning Supplies,PAC
17-May-21,Culture & Environment Services,Dvla Vehicle Tax,277.50,Direct Transport Costs,VEHICLE TAX FOR AV10 KXG
17-May-21,Culture & Environment Services,Dvla Vehicle Tax,277.50,Direct Transport Costs,VEHICLE TAX FOR AV10 OPF
17-May-21,Culture & Environment Services,Dvla Vehicle Tax,277.50,Direct Transport Costs,VEHICLE TAX FOR AV10 UKB
17-May-21,Culture & Environment Services,Dvla Vehicle Tax,277.50,Direct Transport Costs,VEHICLE TAX FOR AV10 UKC
17-May-21,Culture & Environment Services,Dvla Vehicle Tax,277.50,Direct Transport Costs,VEHICLE TAX FOR AV10 UKD
17-May-21,Culture & Environment Services,Dvla Vehicle Tax,277.50,Direct Transport Costs,VEHICLE TAX FOR AV10 UKF
17-May-21,Culture & Environment Services,Dvla Vehicle Tax,277.50,Direct Transport Costs,VEHICLE TAX FOR AV10 VXY
17-May-21,Culture & Environment Services,Dvla Vehicle Tax,277.50,Direct Transport Costs,VEHICLE TAX FOR AV10 XVM
17-May-21,Culture & Environment Services,Dvla Vehicle Tax,167.50,Direct Transport Costs,VEHICLE TAX FOR AV11 XCR
17-May-21,Culture & Environment Services,Dvla Vehicle Tax,277.50,Direct Transport Costs,VEHICLE TAX FOR AY20 HYA
18-May-21,Culture & Environment Services,Dvla Vehicle Tax,277.50,Direct Transport Costs,VEHCLE TAX FOR AV10 LZC
18-May-21,Culture & Environment Services,Dvla Vehicle Tax,277.50,Direct Transport Costs,VEHICLE TAX FOR AV10 LMO
18-May-21,Culture & Environment Services,Dvla Vehicle Tax,277.50,Direct Transport Costs,VEHICLE TAX FOR AV10 LYZ
18-May-21,Culture & Environment Services,Dvla Vehicle Tax,277.50,Direct Transport Costs,VEHICLE TAX FOR AV10 MXK
19-May-21,Culture & Environment Services,Dvla Vehicle Tax,277.50,Direct Transport Costs,VEHICLE TAX FOR AV10 KXL
19-May-21,Culture & Environment Services,Dvla Vehicle Tax,172.50,Direct Transport Costs,VEHICLE TAX FOR AY18 DTZ
17-May-21,Culture & Environment Services,Dvla Vehicle Tax,277.50,Parks Vehicle Costs,VEHICLE TAX FOR AU17 HPP
17-May-21,Culture & Environment Services,Dvla Vehicle Tax,277.50,Parks Vehicle Costs,VEHICLE TAX FOR AV10 VXZ
17-May-21,Culture & Environment Services,Dvla Vehicle Tax,277.50,Parks Vehicle Costs,VEHICLE TAX FOR AY20 HXU
17-May-21,Culture & Environment Services,Dvla Vehicle Tax,277.50,Parks Vehicle Costs,VEHICLE TAX FOR FG16 LJA
17-May-21,Culture & Environment Services,Dvla Vehicle Tax,277.50,Parks Vehicle Costs,VEHICLE TAX FOR FL16 KPX
25-May-21,Culture & Environment Services,Dvsa,334.17,Licences & Other Fees,continuation fee for OP
28-Apr-21,Culture & Environment Services,Eastern Hose & Hydraul,263.32,Equipment / Furniture / Materials,Hose purchases for Graffiti vehicle
12-May-21,Culture & Environment Services,Eveque Leisure Equipment,118.60,Equipment / Furniture / Materials,Athletics equipment
12-May-21,Culture & Environment Services,Findel Education,39.96,Equipment / Furniture / Materials,Discusses for junior athletics
14-May-21,Culture & Environment Services,Floorstock,61.58,Cleaning Supplies,Bona floor cleaner for grandhall floor
18-May-21,Culture & Environment Services,Halfords 0393,3.32,Miscellaneous Stock  - Purchases,SPARK PLUG - ALEXANDRA PARK
17-May-21,Culture & Environment Services,Ibex Supplies Ltd,82.17,Miscellaneous Stock  - Purchases,Fencing spanners
11-May-21,Culture & Environment Services,Ipswich Borough Co,83.33,Licences & Other Fees,Cafe pavement licence
01-Apr-21,Culture & Environment Services,Ipswichtheatres.Ticket,41.67,Non Contracted_Professional Services,Voucher
03-May-21,Culture & Environment Services,J & C Joel,642.40,Fixtures & Fittings,Black cloth to cover paintings within Council Chamber
12-May-21,Culture & Environment Services,Kee Systems Ltd,325.00,Miscellaneous Stock  - Purchases,Flexible Traffic Bollard - DUKE STREET CAR PARK
21-May-21,Culture & Environment Services,Kings,60.42,Materials and Supplies - Miscellaneous,Key cut for various location
05-May-21,Culture & Environment Services,Lc Packaging UK Ltd,47.00,Equipment / Furniture / Materials,Sand bags
05-May-21,Culture & Environment Services,Leisureteq,478.40,Equipment / Furniture / Materials,pool repair parts
11-May-21,Culture & Environment Services,Lumberjacks,13.98,Materials and Supplies - Miscellaneous,galvanised fencing staples
03-May-21,Culture & Environment Services,Lumberjacks,112.75,Miscellaneous Stock  - Purchases,POST MIX FOR FENCING - ALEXANDRA PARK
14-May-21,Culture & Environment Services,Machine Mart Ltd,40.48,Materials and Supplies - Miscellaneous,Various Tools - CHANTRY HUB
11-May-21,Culture & Environment Services,Marshalls Group Limited,325.32,Miscellaneous Stock  - Purchases,Flexible Traffic Bollard - DUKE STREET CAR PARK
24-May-21,Culture & Environment Services,Moonpig,26.23,Equipment / Furniture / Materials,REDACTED
19-May-21,Culture & Environment Services,Nelson Potter (Dodnash,74.94,Materials and Supplies - Miscellaneous,Material for Chantry Car Park repair - CHANTRY HUB
13-May-21,Culture & Environment Services,Npower Limited,-360.00,Miscellaneous Expenses,Refund of Annual Meter & Operational Services charges
12-May-21,Culture & Environment Services,Omgtradltd,92.30,Equipment / Furniture / Materials,Heavy discusses for junior athletics
19-May-21,Culture & Environment Services,Pooley Removals,"1,340.00",Equipment / Furniture / Materials,Specialist removal of painting in CChamber
27-May-21,Culture & Environment Services,Post Office Counter,172.50,Direct Transport Costs,AY18DNJ - vehicle tax
17-May-21,Culture & Environment Services,Premier Farnell,45.99,Equipment / Furniture / Materials,Electrical adaptors and contact cleaner for PA system.
07-May-21,Culture & Environment Services,Prospec Ltd,753.15,Equipment / Furniture / Materials,locker repair parts
13-May-21,Culture & Environment Services,Ridgeons Atc Ipswich,139.00,Equipment / Furniture / Materials,Tools for Chantry Hub
13-May-21,Culture & Environment Services,Ridgeons Atc Ipswich,409.17,Equipment / Furniture / Materials,Tools for Chantry Hub
10-May-21,Culture & Environment Services,Roundwood Service Station,16.86,Non Contracted_Professional Services,Fuel for Elections Hire Vehicle
11-May-21,Culture & Environment Services,Roundwood Service Station,9.96,Non Contracted_Professional Services,Fuel for Elections Hire Vehicle
11-May-21,Culture & Environment Services,Roundwood Service Station,15.64,Non Contracted_Professional Services,Fuel for Elections Hire Vehicle
26-May-21,Culture & Environment Services,Rs Components,10.67,Equipment / Furniture / Materials,Batteries for Vibby Fall Detectors
26-Apr-21,Culture & Environment Services,Sainsburys S/mkt,1.82,Materials and Supplies - Miscellaneous,Sundries for Waste Services
17-May-21,Culture & Environment Services,Sainsburys S/mkt,5.57,Materials and Supplies - Miscellaneous,Sundries for Waste Services
13-May-21,Culture & Environment Services,Sainsburys S/mkts,2.92,Cleaning Supplies,100 J-Cloths
30-Apr-21,Culture & Environment Services,Sainsburys S/mkts,1.82,Materials and Supplies - Miscellaneous,Sundries for Waste Services
07-May-21,Culture & Environment Services,Sainsburys S/mkts,0.91,Materials and Supplies - Miscellaneous,Sundries for Waste Services
10-May-21,Culture & Environment Services,Sainsburys S/mkts,1.82,Materials and Supplies - Miscellaneous,Sundries for Waste Services
21-May-21,Culture & Environment Services,Sainsburys S/mkts,1.82,Materials and Supplies - Miscellaneous,Sundries for Waste Services
25-May-21,Culture & Environment Services,Screwfix Dir Ltd,1.66,Equipment / Furniture / Materials,Battery for iVi Falls Pendant
13-May-21,Culture & Environment Services,Screwfix Dir Ltd,15.63,Materials and Supplies - Miscellaneous,Various Tools - CHANTRY HUB
06-May-21,Culture & Environment Services,Screwfix Dir Ltd,14.21,Miscellaneous Stock  - Purchases,Bench fixings - ALEXANDRA PARK
06-May-21,Culture & Environment Services,Screwfix Dir Ltd,36.93,Miscellaneous Stock  - Purchases,SAFETY MATS - ALEXANDRA PARK
11-May-21,Culture & Environment Services,Screwfix Dir Ltd,28.73,Miscellaneous Stock  - Purchases,Sealant - ALEXANDRA PARK
19-May-21,Culture & Environment Services,Screwfix Dir Ltd,21.73,Miscellaneous Stock  - Purchases,Black paint & Brushes - ALEXANDRA PARK
20-May-21,Culture & Environment Services,Screwfix Dir Ltd,4.80,Miscellaneous Stock  - Purchases,Toilet Door Signage - ALEXANDRA PARK
03-May-21,Culture & Environment Services,Screwfix Direct,103.86,Equipment / Furniture / Materials,Tools and accessories for the Elections
04-May-21,Culture & Environment Services,Screwfix Direct,41.65,Equipment / Furniture / Materials,Fixings for works to cover painting within Council Chamber
06-May-21,Culture & Environment Services,Screwfix Direct,87.49,Equipment / Furniture / Materials,New sack barrow for masonry team
12-May-21,Culture & Environment Services,Screwfix Direct,183.45,Equipment / Furniture / Materials,door closer and repair parts
13-May-21,Culture & Environment Services,Screwfix Direct,19.15,Equipment / Furniture / Materials,Air Horns - Emergency Pool Reception Use
18-May-21,Culture & Environment Services,Stanley Handling,366.50,Equipment / Furniture / Materials,stairclimber hire fee
25-May-21,Culture & Environment Services,Suffolk County Council,62.50,Licence Fees - Highways,Skip Permit for Wastesaver
14-May-21,Culture & Environment Services,Suffolk Fastener (Ipsw,14.53,Materials and Supplies - Miscellaneous,Nuts & Bolts - MARION ROAD
07-May-21,Culture & Environment Services,Suffolk Fastener (Ipsw,5.83,Miscellaneous Stock  - Purchases,FIXINGS FOR SWINGS - ALEXANDRA PARK
03-May-21,Culture & Environment Services,Tahdah Verified,40.00,Training Expenses,Membership
31-May-21,Culture & Environment Services,Tahdah Verified,40.00,Training/Courses Running Costs,RLSS Membership so can Mentor new TA's
20-May-21,Culture & Environment Services,Tesco Store 3240,3.33,Cleaning Supplies,Tissues for Gipping House Testing
10-May-21,Culture & Environment Services,The Royal Life Saving S,528.33,Training Expenses,RLSS items
17-May-21,Culture & Environment Services,The Windscreen Co,198.00,Direct Transport Costs,REPLACEMENT WS FOR AV20 HXT
24-May-21,Culture & Environment Services,The Windscreen Co,282.00,Direct Transport Costs,REPLACEMENT WINDOW FOR AY66 CYA
25-May-21,Culture & Environment Services,Timpson Ltd,5.83,Materials and Supplies - Miscellaneous,Keys cut - WHITTON HUB
27-May-21,Culture & Environment Services,Toolstation Ltd,128.92,Equipment / Furniture / Materials,Stone/metal cutting blades - HOLYWELLS SPLASH PAD
06-May-21,Culture & Environment Services,Toolstation Uk,8.77,Materials and Supplies - Miscellaneous,Graffiti remover for the paddling pool at Bourne Park
07-May-21,Culture & Environment Services,Toolstation Uk,60.32,Miscellaneous Stock  - Purchases,Cables for generator to work tools
03-May-21,Culture & Environment Services,Train With Caws,84.00,Specific Campaigns / Projects expenditure,CAWS Long Covid Training - RFA's
25-May-21,Culture & Environment Services,Trainline.Com,157.38,Miscellaneous Expenses,3 x train tickets to attend Event Production Show
27-May-21,Culture & Environment Services,Travis Perkins,52.72,Equipment / Furniture / Materials,Various Tools - PLAY AREA INSPECTOR
03-May-21,Culture & Environment Services,Wh Smith,9.90,Postage Costs,Stamps envelopes purchased
06-May-21,Culture & Environment Services,Wickes Ipswich,21.17,Materials and Supplies - Miscellaneous,LATCH FOR TOILET DOOR - CHANTRY HUB
18-May-21,Culture & Environment Services,Wickes Ipswich,5.21,Materials and Supplies - Miscellaneous,Cement - MARION ROAD
05-May-21,Culture & Environment Services,Wilko Retail Limited,3.08,Equipment / Furniture / Materials,Stationary for Elections
20-May-21,Culture & Environment Services,Wm Morrisons Store,4.83,Miscellaneous Stock  - Purchases,Scissors to cut the ribbon at Alex opening
28-Apr-21,Culture & Environment Services,Www.Banneruk.Com,-4.33,Stationery,Credit for stationery not received
29-Apr-21,Culture & Environment Services,Www.Banneruk.Com,62.64,Stationery,Stationery for Waste Services
31-May-21,Culture & Environment Services,Www.Cables4all.Co.Uk,26.87,Equipment / Furniture / Materials,Reusable cable ties for stage safety
31-May-21,Culture & Environment Services,Www.Indigoshop.Co.Uk,206.50,Equipment / Furniture / Materials,Low tack floor tape for event safety and GHall floor care
05-May-21,Culture & Environment Services,Www.Licencecheck.Co.Uk,"1,050.00",Direct Transport Costs,250 credits purchased for licence checks
20-May-21,Culture & Environment Services,Www.Pondkeeper.Co.Uk,49.96,Materials and Supplies - Miscellaneous,pond liner for school project
19-May-21,Culture & Environment Services,Www.Sportclox..Com,420.00,Equipment / Furniture / Materials,poolside clock
03-May-21,Development,Aldi 776 104,6.14,Subsistence & Conference/Seminar / Event Expenses,coffee milk
17-May-21,Development,Batterystation.Co.Uk,11.83,Premises Costs - Miscellaneous,batteries
10-May-21,Development,Emap Publishing Ltd,62.45,GF_Contract Repair & Maintenance,Subscription fee
10-May-21,Development,Emap Publishing Ltd,93.66,GF_Contract Repair & Maintenance,Subscription fee
13-May-21,Development,Fast Key Services Limi,11.09,Equipment / Furniture / Materials,spare keys
14-May-21,Development,Halfords 0883,43.75,Equipment / Furniture / Materials,screen wash for pool cars
05-May-21,Development,Royal Mail Charges,1.67,Postage Costs,Fee to pay for SRP
11-May-21,Development,Royal Mail Charges,1.25,Postage Costs,fee to pay SRP
19-May-21,Development,Royal Mail Charges,1.67,Postage Costs,fee to pay benefits
24-May-21,Development,Royal Mail Charges,1.25,Postage Costs,SRP Fee To Pay - Royal Mail Letter
18-May-21,Development,The Landscape Institut,217.00,Employee Expenses,Professional Membership 21/22 
07-May-21,Development,"Www,eastsuffolk.Gov.Uk",96.00,Non Contracted_Professional Services,Partnership Inspections 
21-May-21,Development,"Www,eastsuffolk.Gov.Uk",96.00,Non Contracted_Professional Services,Partnership Inspections 
17-May-21,Development,Www.Midsuffolk.Gov.Uk,100.00,Non Contracted_Professional Services,Partnership Inspections 
07-May-21,Development,Www.Planning.Co,160.00,Capital Expenditure,LBC planning fee
11-May-21,Development,Www.Planning.Co,952.00,Capital Expenditure,1 Cornhill LBC
03-May-21,Finance & Revenues,Acs Business Supplies Lt,228.37,Capital Expenditure,Council Chamber HDMI Switch
27-May-21,Finance & Revenues,Amazon.Co.Uk,13.92,Computer Equipment - Purchase,Laptop Sleeves
27-May-21,Finance & Revenues,Amazon.Co.Uk,76.56,Computer Equipment - Purchase,Laptop Sleeves
26-May-21,Finance & Revenues,Amazon.Co.Uk,48.72,Computer Software - Purchase,Laptop Sleeves
25-May-21,Finance & Revenues,Amazon.Co.Uk,160.60,Equipment / Furniture / Materials,2 x Inkjet Printers
11-May-21,Finance & Revenues,Amazon.Co.Uk,94.17,Telecommunication Costs - Business Phones,Telephones for ESC
25-May-21,Finance & Revenues,Amzn Digital,108.99,Computer Software - Purchase,Office 2019 Home - Student
20-Apr-21,Finance & Revenues,Amznmktplace,143.73,Capital Expenditure,Portable flat screen for Cllr Meetings
20-Apr-21,Finance & Revenues,Amznmktplace,251.25,Capital Expenditure,Laptop for Cllr Meetings
11-May-21,Finance & Revenues,Amznmktplace,31.25,Capital Expenditure,USB C Power Supplies
14-May-21,Finance & Revenues,Amznmktplace,23.96,Capital Expenditure,Mini HDMI Adapters x 4
14-May-21,Finance & Revenues,Amznmktplace,152.82,Capital Expenditure,USB- C Power Supplies - T Hall
18-May-21,Finance & Revenues,Amznmktplace Amazon.Co.Uk,29.44,Computer Consumables and other Minor IT costs,Keyboard & Mse Wireless DSE
25-May-21,Finance & Revenues,Cbt Nuggets Llc,42.97,Training Expenses,IT Training
05-May-21,Finance & Revenues,Comms Express Ltd,"1,490.97",Capital Expenditure,Network equipment
06-May-21,Finance & Revenues,Comms Express Ltd,977.83,Capital Expenditure,Network Equipment
22-Apr-21,Finance & Revenues,Digicert Inc.,249.17,Computer Software - Maintenance,Replacement Certificates for Skype Servers
22-Apr-21,Finance & Revenues,Digicert Inc.,249.17,Computer Software - Maintenance,Replacement Certificates for Skype Servers
22-Apr-21,Finance & Revenues,Digicert Inc.,402.50,Computer Software - Maintenance,Replacement Certificates for Skype Servers
22-Apr-21,Finance & Revenues,Digicert Inc.,402.50,Computer Software - Maintenance,Replacement Certificates for Skype Servers
03-May-21,Finance & Revenues,Kenable Ltd,40.04,Capital Expenditure,HDMI Cables for Cllr Meeting room
11-May-21,Finance & Revenues,Kenable Ltd,203.59,Capital Expenditure,HDMI Cables for Town Hall
07-Apr-21,Finance & Revenues,Microsoft*365,43.10,Computer Software - Purchase,Power BI Licences
07-Apr-21,Finance & Revenues,Microsoft*365,22.50,Equipment / Furniture / Materials,Power BI Licences
16-Apr-21,Finance & Revenues,Msft *,381.50,Computer Equipment - Purchase,Sentinel Server
10-May-21,Finance & Revenues,Msft * E0200ec9pi,22.50,Equipment / Furniture / Materials,Power BI Licences
17-May-21,Finance & Revenues,Msft * E0800ehhfg,284.74,Computer Equipment - Purchase,Sentinel Server
10-May-21,Finance & Revenues,One Direct,221.98,Computer Equipment - Purchase,Cabling Tools and Webcams
07-May-21,Finance & Revenues,Paypal,9.99,Web Service costs,Domain renewal
07-May-21,Finance & Revenues,Paypal,35.97,Web Service costs,Domain renewals
12-May-21,Finance & Revenues,Service Fees - Fraedom Pty Ltd,383.15,Computer Software - Maintenance,Fraedom Card Fees 01/04/21 to 30/04/21
14-May-21,Finance & Revenues,Southend County,"1,391.50",Legal Services & Fees,Council Tax summons
24-May-21,Finance & Revenues,Southend County,382.00,Legal Services & Fees,Council Tax Summons
27-May-21,Finance & Revenues,Southend County,378.50,Legal Services & Fees,Council Tax Summons
12-May-21,Finance & Revenues,Tracker Sof,43.97,Computer Software - Purchase,PDF Software
12-Apr-21,Finance & Revenues,Www.4gon.Co.Uk,722.55,Capital Expenditure,Wi-Fi / Network kit
11-May-21,Finance & Revenues,Www.4gon.Co.Uk,474.10,Capital Expenditure,Wi-Fi Access points for stock
25-May-21,Finance & Revenues,Www.4gon.Co.Uk,234.07,Capital Expenditure,Network switch
13-May-21,Finance & Revenues,Www.Aat-Org.Uk,159.00,Employee Expenses,AAT Membership Subscription
17-May-21,Finance & Revenues,Www.Cablesuk.Co.Uk,166.23,Computer Equipment - Purchase,Extended HDMI cables for Ctte Meetings
14-May-21,Finance & Revenues,Www.Paessler.Com,624.00,Computer Software - Maintenance,PRTG Monitoring Server Licence
31-May-21,Finance & Revenues,Www.Pro2col.Com,167.39,Computer Equipment - Purchase,File transfer software for SRP
03-May-21,Housing & Community Services,Amazon Prime,7.99,Equipment / Furniture / Materials,Amazon Prime
10-May-21,Housing & Community Services,Amazon.Co.Uk,53.62,Miscellaneous Expenses,shower chair BHH
12-May-21,Housing & Community Services,Amz*aid4u Limited,-49.99,Miscellaneous Expenses,refund faulty shower chair BHH
04-May-21,Housing & Community Services,Amznmktplace,14.65,Equipment / Furniture / Materials,windscreen Sat Nav Holder
10-May-21,Housing & Community Services,Amznmktplace,24.58,Miscellaneous Expenses,KB COVID opening up lounges tape marking tape
26-May-21,Housing & Community Services,Argos Ltd,732.93,Specific Campaigns / Projects expenditure,Various items for Navigator clients from personal budgets
20-May-21,Housing & Community Services,Certsure Llp,572.40,Non Contracted_Professional Services,Elecsa Membership Fees
14-May-21,Housing & Community Services,Cpw Locksmiths And Securi,80.00,HRA Special Repairs & Maintenance,re-prog faulty fob reader
14-May-21,Housing & Community Services,Cpw Locksmiths And Securi,126.00,HRA Special Repairs & Maintenance,scooter store locks/numbers Walton House
21-May-21,Housing & Community Services,Cpw Locksmiths And Securi,181.67,HRA Special Repairs & Maintenance,replace euro lock to Hobbies room Holywells Court
03-May-21,Housing & Community Services,Dunelm,14.00,Specific Campaigns / Projects expenditure,Blinds for Housing First client
14-May-21,Housing & Community Services,Food Safety Direct,63.59,Equipment / Furniture / Materials,pace notebooks
11-May-21,Housing & Community Services,Greater Anglia T/o,15.50,Specific Campaigns / Projects expenditure,Options client train ticket to Lowestoft for accommodation
26-May-21,Housing & Community Services,Hotel On Booking.Com,526.67,Services for Clients,hotel accommodation for BC - homeless person
10-May-21,Housing & Community Services,Housing Reviews,"1,000.00",Stationery,Minos letters
05-May-21,Housing & Community Services,Ipswich Borough Counci,-45.00,Specific Campaigns / Projects expenditure,Refund for unused Gym pass for Navigator client
17-May-21,Housing & Community Services,Npl*new Pig Ltd,176.47,GF_Contract Repair & Maintenance,Roof Rainwater diverter Kit 
03-May-21,Housing & Community Services,Premier Inn 44536100,170.95,Services for Clients,BC Accom
06-May-21,Housing & Community Services,Premier Inn 44536100,241.90,Services for Clients,B & B CH
06-May-21,Housing & Community Services,Premier Inn 44536100,241.90,Services for Clients,hotel accommodation for homeless person
13-May-21,Housing & Community Services,Premier Inn 44536100,246.67,Services for Clients,hotel accommodation for homeless person
13-May-21,Housing & Community Services,Premier Inn 44536100,247.14,Services for Clients,hotel accommodation for homeless person
20-May-21,Housing & Community Services,Premier Inn 44536100,384.29,Services for Clients,BC temp accom
27-May-21,Housing & Community Services,Premier Inn 44536100,103.81,Services for Clients,B & B BC
24-May-21,Housing & Community Services,Prime Video*2t6jg6z44,17.99,Stationery,Stationery
14-May-21,Housing & Community Services,Sainsburys S/mkt,20.83,Miscellaneous Expenses,replacement kettle Wingate House
18-May-21,Housing & Community Services,Sainsburys S/mkts,60.00,Miscellaneous Expenses,COVID Planner for each scheme opening up trace/track
13-May-21,Housing & Community Services,Screwfix Direct,62.49,Equipment / Furniture / Materials,Measuring Device Hireshop MC278
14-May-21,Housing & Community Services,Tesco Store 2748,39.98,Specific Campaigns / Projects expenditure,2 phones for navigator clients
14-May-21,Housing & Community Services,Timpson Ltd,8.75,HRA Special Repairs & Maintenance,2 keys garage BHH
13-May-21,Housing & Community Services,Toolstation Uk,34.32,Equipment / Furniture / Materials,Stanley Laser Distance Finder MC277 Hireshop
19-May-21,Housing & Community Services,Www Elmhurstenergy Co Uk,216.00,Training Expenses,Training Expenses
18-May-21,Housing & Community Services,Www.Banneruk.Com,96.60,Stationery,Stationery
31-May-21,Housing & Community Services,Www.The Batteryshop.Co,177.29,Equipment / Furniture / Materials,General supply purchases
03-May-21,People & Governance,Adobe Stock,16.66,Computer Consumables and other Minor IT costs,Image Credits
14-May-21,People & Governance,Amazon.Co.Uk,24.17,Computer Consumables and other Minor IT costs,Canon 540/541
20-May-21,People & Governance,Amazon.Co.Uk,47.47,Computer Consumables and other Minor IT costs,HP305 Black x3
26-May-21,People & Governance,Amazon.Co.Uk,27.85,Computer Consumables and other Minor IT costs,Canon 520PGBK x3
31-May-21,People & Governance,Amazon.Co.Uk,32.95,Miscellaneous Stock  - Purchases,Envelopes for the print room use
31-May-21,People & Governance,Amazon.Co.Uk,32.95,Miscellaneous Stock  - Purchases,Envelopes for the print room use
13-May-21,People & Governance,Amznmktplace,23.32,Miscellaneous Stock  - Purchases,White A1 Correx Boards for the print room
06-May-21,People & Governance,Amznmktplace Amazon.Co.Uk,8.32,Miscellaneous Stock  - Purchases,Lanyards for the Election Count Attendees
06-May-21,People & Governance,Amznmktplace Amazon.Co.Uk,56.29,Printing Costs,Lanyards for the Election Count Attendees
20-May-21,People & Governance,Cartridgepeople.Com,39.57,Computer Consumables and other Minor IT costs,Councillor Ink Cartridge
20-May-21,People & Governance,Cipd Integra,163.00,Non Contracted_Professional Services,CIPD Membership fee
17-May-21,People & Governance,"Sprout Social, Inc",696.90,Advertising/Publicity,Social media management platform
06-May-21,People & Governance,Wf *wayfair3573271324,430.00,Specific Campaigns / Projects expenditure,REDACTED
28-May-21,People & Governance,Www.Aalabels.Com,300.63,Miscellaneous Stock  - Purchases,Labels for the print room use
07-May-21,People & Governance,Www.Banneruk.Com,148.00,Miscellaneous Stock  - Purchases,Envelopes for the Print room use
31-May-21,People & Governance,Www.Banneruk.Com,174.24,Miscellaneous Stock  - Purchases,Envelopes for the Print Room Use
13-May-21,People & Governance,Www.Paper.Co.Uk,261.16,Miscellaneous Stock  - Purchases,Various paper - Print Room Stock
19-May-21,People & Governance,Www.Paper.Co.Uk,303.76,Miscellaneous Stock  - Purchases,Various Paper for the Print Room use
26-May-21,People & Governance,Www.Paper.Co.Uk,153.91,Miscellaneous Stock  - Purchases,Specialist Paper for the Print Room use
17-May-21,People & Governance,Zoom.Gbp,23.98,Computer Consumables and other Minor IT costs,Zoom Licence Subscription
